bitfinex/quotes_BTCUSD_20250826
["timestamp","ask_amount","ask_price","bid_price","bid_amount"]
[1756225679074,0.75330857,109910.0,109900.0,0.49912564]
[1756225679272,0.75330857,109910.0,109900.0,0.16146202]
[1756225679709,0.75330857,109910.0,109900.0,0.31914202]
[1756225680038,0.75530857,109910.0,109900.0,0.31914202]
[1756225681094,0.75530857,109910.0,109900.0,0.35916566]
[1756225681941,0.1975529,109910.0,109900.0,0.54114928]
[1756225682148,0.18845405,109910.0,109900.0,0.54114928]
[1756225682348,0.74620972,109910.0,109900.0,0.54114928]
[1756225686326,0.74620972,109910.0,109900.0,0.54420928]
[1756225686530,0.74620972,109910.0,109900.0,0.54114928]
[1756225686987,0.74620972,109910.0,109900.0,0.38346928]
[1756225687202,0.74620972,109910.0,109900.0,0.20148566]
[1756225687405,0.74620972,109910.0,109900.0,0.54110928]
[1756225687811,0.74620972,109910.0,109900.0,0.54405928]
[1756225688032,0.74620972,109910.0,109900.0,0.54110928]
[1756225688853,0.74620972,109910.0,109900.0,0.35912566]
[1756225689192,0.74620972,109910.0,109900.0,0.54110928]
[1756225692491,0.74620972,109910.0,109900.0,0.54405928]
[1756225696099,0.74620972,109910.0,109900.0,0.35908566]
[1756225696752,0.74620972,109910.0,109900.0,0.20148566]
[1756225696952,1.08620972,109910.0,109900.0,0.35904566]
[1756225698145,1.08620972,109910.0,109900.0,0.11002364]
[1756225698349,1.08620972,109910.0,109900.0,0.26758364]
[1756225699170,1.08620972,109910.0,109900.0,0.22756]
[1756225699171,1.17765501,109910.0,109900.0,0.22756]
[1756225700205,0.18200018,109890.0,109880.0,0.25496674]
[1756225700420,0.18200018,109890.0,109880.0,0.50613876]
[1756225700421,0.73975585,109890.0,109880.0,0.50613876]
[1756225700832,0.73975585,109890.0,109880.0,0.16146202]
[1756225701041,0.73975585,109890.0,109880.0,0.31902202]
[1756225701448,0.73975585,109890.0,109880.0,0.32412202]
[1756225701449,0.74075585,109890.0,109880.0,0.32412202]
[1756225701661,0.74275585,109890.0,109880.0,0.50613876]
[1756225702618,0.56075567,109890.0,109880.0,0.50613876]
[1756225702854,0.56075567,109890.0,109880.0,0.50617876]
[1756225703083,0.74275585,109890.0,109880.0,0.50617876]
[1756225703479,0.56075567,109890.0,109880.0,0.50617876]
[1756225703679,0.003,109890.0,109880.0,0.50617876]
[1756225704272,0.003,109890.0,109880.0,1.06393443]
[1756225704647,0.003,109890.0,109880.0,0.50617876]
[1756225709983,0.003,109890.0,109880.0,1.06393443]
[1756225712196,0.003,109890.0,109880.0,0.50617876]
[1756225712410,0.003,109890.0,109880.0,0.90637443]
[1756225712533,0.003,109890.0,109880.0,1.06385443]
[1756225714400,0.003,109890.0,109880.0,0.50609876]
[1756225714642,0.003,109890.0,109880.0,1.06385443]
[1756225716761,0.003,109890.0,109880.0,0.50609876]
[1756225716961,0.003,109890.0,109880.0,1.06385443]
[1756225717401,0.003,109890.0,109880.0,0.90637443]
[1756225717603,0.003,109890.0,109880.0,1.06385443]
[1756225717982,0.003,109890.0,109880.0,0.50609876]
[1756225719811,0.003,109890.0,109880.0,1.06385443]
[1756225722202,0.003,109890.0,109880.0,1.08130345]
[1756225722405,0.003,109890.0,109880.0,1.10865845]
[1756225722806,0.003,109890.0,109880.0,2.00641412]
[1756225723210,0.002,109890.0,109880.0,1.84865845]
[1756225723641,0.003,109890.0,109880.0,1.44865845]
[1756225724027,0.001,109890.0,109880.0,1.84857845]
[1756225724230,0.001,109890.0,109880.0,2.11317845]
[1756225724810,0.001,109890.0,109880.0,2.11417845]
[1756225725222,0.00048699,109910.0,109900.0,0.18198362]
[1756225725582,0.00048699,109910.0,109900.0,0.50084564]
[1756225725713,0.00048699,109910.0,109900.0,0.50281564]
[1756225725920,0.00048699,109910.0,109900.0,0.50581564]
[1756225726601,0.00248699,109910.0,109900.0,0.50581564]
[1756225728952,0.00348699,109910.0,109900.0,0.50581564]
[1756225730183,0.00348699,109910.0,109900.0,1.06357131]
[1756225731011,0.00348699,109910.0,109900.0,1.06156131]
[1756225731422,0.00348699,109910.0,109900.0,1.06353131]
[1756225731624,0.00348699,109910.0,109900.0,1.06160131]
[1756225731910,0.00348699,109910.0,109900.0,0.50084564]
[1756225732108,0.00348699,109910.0,109900.0,1.06357131]
[1756225736516,0.51577689,109930.0,109910.0,0.73972273]
[1756225736712,0.52487358,109930.0,109920.0,0.24878202]
[1756225737448,0.01010378,109940.0,109930.0,0.18193395]
[1756225737644,0.1843174,109940.0,109930.0,0.25178202]
[1756225737842,0.1823174,109940.0,109930.0,0.43371597]
[1756225738043,0.0004,109940.0,109930.0,0.43568597]
[1756225738247,0.1823174,109940.0,109930.0,0.43371597]
[1756225738802,0.1823174,109940.0,109930.0,0.08946202]
[1756225739007,0.1823174,109940.0,109930.0,0.24678202]
[1756225739432,0.1823174,109940.0,109930.0,0.42871597]
[1756225739639,0.1853174,109940.0,109930.0,0.42471597]
[1756225739841,0.1853174,109940.0,109930.0,0.24278202]
[1756225740194,0.19913235,109940.0,109930.0,0.28378265]
[1756225740399,0.19913235,109940.0,109930.0,0.12646265]
[1756225740595,0.19913235,109940.0,109930.0,0.28374265]
[1756225741276,0.19913235,109940.0,109930.0,0.12646265]
[1756225741816,0.19913235,109940.0,109930.0,0.28374265]
[1756225742021,0.75688802,109940.0,109930.0,0.28374265]
[1756225742433,0.75688802,109940.0,109930.0,0.4656366]
[1756225742434,0.19913235,109940.0,109930.0,0.4656366]
[1756225742640,0.19913235,109940.0,109930.0,0.28370265]
[1756225744845,0.19913235,109940.0,109920.0,0.07]
[1756225744846,0.18193395,109930.0,109920.0,0.07]
[1756225745021,0.73968962,109930.0,109920.0,0.22724]
[1756225745423,0.18193395,109930.0,109920.0,0.22724]
[1756225745607,0.73968962,109930.0,109920.0,0.22724]
[1756225746009,1.08068962,109930.0,109920.0,0.22724]
[1756225746433,0.52293395,109930.0,109920.0,0.22724]
[1756225746636,1.08268962,109930.0,109920.0,0.22724]
[1756225748977,0.52493395,109930.0,109920.0,0.22724]
[1756225749174,1.08268962,109930.0,109920.0,0.22724]
[1756225749890,1.08268962,109930.0,109920.0,0.26848214]
[1756225750104,1.08268962,109930.0,109920.0,0.11124214]
[1756225750308,1.08268962,109930.0,109920.0,0.26844214]
[1756225753493,0.52493395,109930.0,109920.0,0.26844214]
[1756225753662,1.08268962,109930.0,109920.0,0.26844214]
[1756225755524,1.08268962,109930.0,109920.0,0.27363214]
[1756225756166,0.52493395,109930.0,109920.0,0.27363214]
[1756225759040,0.52493395,109930.0,109920.0,0.27151214]
[1756225759503,0.52493395,109930.0,109920.0,0.26840214]
[1756225759712,1.08268962,109930.0,109920.0,0.26840214]
[1756225762484,1.08268962,109930.0,109920.0,0.27147214]
[1756225762956,1.08268962,109930.0,109920.0,0.11431214]
[1756225763170,1.08268962,109930.0,109920.0,0.27147214]
[1756225764074,0.52493395,109930.0,109920.0,0.27147214]
[1756225764283,1.08268962,109930.0,109920.0,0.27147214]
[1756225764693,0.52493395,109930.0,109920.0,0.27359214]
[1756225766465,0.52470881,109930.0,109920.0,0.27359214]
[1756225766672,0.52470881,109930.0,109920.0,0.11643214]
[1756225766877,0.52470881,109930.0,109920.0,0.27355214]
[1756225767094,0.52470881,109930.0,109920.0,0.36501416]
[1756225767775,0.52470881,109930.0,109920.0,0.54696466]
[1756225767978,0.52470881,109930.0,109920.0,0.50572252]
[1756225768403,0.52470881,109930.0,109920.0,0.32377202]
[1756225768617,0.52470881,109930.0,109920.0,0.16665202]
[1756225768871,0.52470881,109930.0,109920.0,0.32165202]
[1756225769078,0.52470881,109930.0,109920.0,0.32377202]
[1756225770559,0.52470881,109930.0,109920.0,0.32381202]
[1756225772542,0.52470881,109930.0,109920.0,0.16669202]
[1756225772787,0.52470881,109930.0,109920.0,0.32381202]
[1756225775331,0.52470881,109930.0,109920.0,0.50576252]
[1756225775768,0.52470881,109930.0,109920.0,1.06351819]
[1756225775983,0.18470881,109930.0,109920.0,1.06351819]
[1756225777715,0.18493395,109930.0,109920.0,1.06351819]
[1756225778132,0.003,109930.0,109920.0,1.06351819]
[1756225779431,0.002,109930.0,109920.0,1.10494072]
[1756225779848,0.002,109930.0,109920.0,1.13228972]
[1756225780529,0.18231867,109940.0,109920.0,0.41741405]
[1756225780746,0.001,109930.0,109920.0,1.0377177]
[1756225781427,0.18231867,109940.0,109930.0,0.18193395]
[1756225781637,0.18231867,109940.0,109930.0,0.18394395]
[1756225781853,0.18231867,109940.0,109930.0,0.00526]
[1756225782075,0.18231867,109940.0,109930.0,0.18719395]
[1756225782683,0.18231867,109940.0,109930.0,0.00526]
[1756225783059,0.18231867,109940.0,109930.0,0.34423395]
[1756225783522,0.18231867,109940.0,109930.0,0.00526]
[1756225783693,0.18331867,109940.0,109930.0,0.1623]
[1756225785413,0.18331867,109940.0,109930.0,0.34423395]
[1756225785801,0.0014,109940.0,109930.0,0.99345164]
[1756225786949,0.1833174,109940.0,109930.0,0.99345164]
[1756225787617,0.1833174,109940.0,109930.0,0.83641164]
[1756225787804,0.1833174,109940.0,109930.0,0.25376202]
[1756225788650,0.1833174,109940.0,109930.0,0.43565597]
[1756225788861,0.1833174,109940.0,109930.0,0.25372202]
[1756225789004,0.1833174,109940.0,109930.0,0.43565597]
[1756225789812,0.1833174,109940.0,109930.0,0.44539024]
[1756225790043,0.1833174,109940.0,109930.0,0.43565597]
[1756225790455,0.0014,109940.0,109930.0,0.99341164]
[1756225792285,0.0014,109940.0,109930.0,1.00296858]
[1756225794671,0.0004,109940.0,109930.0,1.00296858]
[1756225795021,0.0004,109940.0,109930.0,1.00396858]
[1756225796479,0.0004,109940.0,109930.0,1.26856858]
[1756225796676,0.0004,109940.0,109930.0,1.00396858]
[1756225796873,0.0004,109940.0,109930.0,1.03131458]
[1756225797478,0.0004,109940.0,109930.0,1.10383418]
[1756225798489,0.0004,109940.0,109930.0,1.10379418]
[1756225799759,0.0004,109940.0,109930.0,0.94683418]
[1756225800009,0.0004,109940.0,109930.0,1.10375418]
[1756225800332,0.0004,109940.0,109930.0,0.31655891]
[1756225800536,0.0004,109940.0,109930.0,1.03123458]
[1756225802839,0.0004,109940.0,109930.0,0.87431458]
[1756225803039,0.0004,109940.0,109930.0,1.03123458]
[1756225803859,0.0004,109940.0,109930.0,0.87431458]
[1756225804273,0.0004,109940.0,109930.0,1.03123458]
[1756225806303,0.0004,109940.0,109930.0,0.47347891]
[1756225806506,0.0004,109940.0,109930.0,1.03123458]
[1756225807171,0.0004,109940.0,109930.0,1.29583458]
[1756225807612,0.0004,109940.0,109930.0,0.73807891]
[1756225807860,0.0004,109940.0,109930.0,1.29583458]
[1756225808466,0.0004,109940.0,109930.0,1.13891458]
[1756225808640,0.0004,109940.0,109930.0,1.29579458]
[1756225810073,0.0004,109940.0,109930.0,0.73803891]
[1756225810208,0.1823174,109940.0,109930.0,1.29579458]
[1756225810425,0.1823174,109940.0,109930.0,0.09246202]
[1756225810426,1.11653498,109940.0,109930.0,0.09246202]
[1756225810660,1.15363015,109940.0,109930.0,0.001]
[1756225810861,1.20064401,109940.0,109930.0,0.001]
[1756225811064,1.17208033,109940.0,109930.0,0.001]
[1756225811905,0.52193395,109930.0,109920.0,0.15692]
[1756225812121,1.07968962,109930.0,109920.0,0.15692]
[1756225812523,0.52193395,109930.0,109920.0,0.15692]
[1756225812691,1.07968962,109930.0,109920.0,0.15692]
[1756225813526,0.52393395,109930.0,109920.0,0.15692]
[1756225813987,0.53365134,109930.0,109920.0,0.24838202]
[1756225814173,0.53365134,109930.0,109920.0,0.43033252]
[1756225814616,0.52393395,109930.0,109920.0,0.43033252]
[1756225814806,0.342,109930.0,109920.0,0.43543252]
[1756225815042,0.52693395,109930.0,109920.0,0.43543252]
[1756225815297,0.002,109930.0,109920.0,0.43543252]
[1756225815528,0.002,109930.0,109920.0,1.06570779]
[1756225815745,0.002,109930.0,109920.0,0.50795212]
[1756225816340,0.003,109930.0,109920.0,0.50795212]
[1756225816621,0.001,109930.0,109920.0,0.50795212]
[1756225816875,0.18293395,109930.0,109920.0,0.50795212]
[1756225817101,0.52707558,109940.0,109920.0,0.50795212]
[1756225817330,0.52707558,109940.0,109930.0,0.18193395]
[1756225817331,0.53657951,109940.0,109930.0,0.18193395]
[1756225817752,0.93420371,109950.0,109930.0,0.27849597]
[1756225817978,0.2185193,109950.0,109940.0,0.43335942]
[1756225818190,0.1911663,109950.0,109940.0,0.43335942]
[1756225818369,0.5311663,109950.0,109940.0,0.43235942]
[1756225818574,0.5311663,109950.0,109940.0,0.43035942]
[1756225818998,0.52207126,109950.0,109940.0,0.43035942]
[1756225819207,0.52607126,109950.0,109940.0,0.43035942]
[1756225819633,0.34414323,109950.0,109940.0,0.43231942]
[1756225819835,0.34214323,109950.0,109940.0,0.43231942]
[1756225820036,0.34314323,109950.0,109940.0,0.43231942]
[1756225821209,0.52404409,109950.0,109940.0,0.27547942]
[1756225821411,0.52397477,109950.0,109940.0,0.43035942]
[1756225821621,0.52497477,109950.0,109940.0,0.43035942]
[1756225821822,0.52497477,109950.0,109940.0,0.43231942]
[1756225822054,0.34207391,109950.0,109940.0,0.43231942]
[1756225822450,0.00207391,109950.0,109940.0,0.99007509]
[1756225822652,0.00207391,109950.0,109940.0,1.03115398]
[1756225824039,7.391e-05,109950.0,109940.0,1.04093835]
[1756225825585,0.00107391,109950.0,109940.0,1.04093835]
[1756225825952,7.391e-05,109950.0,109940.0,1.04093835]
[1756225826836,7.391e-05,109950.0,109940.0,0.48318268]
[1756225827041,7.391e-05,109950.0,109940.0,1.04093835]
[1756225829166,7.391e-05,109950.0,109940.0,1.06828135]
[1756225829830,7.391e-05,109950.0,109940.0,1.14080095]
[1756225830047,7.391e-05,109950.0,109940.0,1.14280095]
[1756225830496,7.391e-05,109950.0,109940.0,0.98596095]
[1756225830726,7.391e-05,109950.0,109940.0,1.07020135]
[1756225831153,7.391e-05,109950.0,109940.0,0.91444135]
[1756225831364,7.391e-05,109950.0,109940.0,1.07120135]
[1756225832894,7.391e-05,109950.0,109940.0,0.91444135]
[1756225833346,7.391e-05,109950.0,109940.0,1.07120135]
[1756225834842,7.391e-05,109950.0,109940.0,0.51344568]
[1756225835029,7.391e-05,109950.0,109940.0,0.48610268]
[1756225835485,0.18397477,109950.0,109940.0,0.31745831]
[1756225835699,0.73973044,109950.0,109940.0,0.29226091]
[1756225836801,0.73973044,109950.0,109940.0,0.09446202]
[1756225837021,1.07973044,109950.0,109940.0,0.003]
[1756225837272,1.07973044,109950.0,109940.0,0.15972]
[1756225837483,1.10708244,109950.0,109940.0,0.15972]
[1756225837695,1.19852773,109950.0,109940.0,0.003]
[1756225837903,0.64077206,109950.0,109940.0,0.003]
[1756225838114,0.64077206,109950.0,109940.0,0.002]
[1756225838344,1.20052773,109950.0,109940.0,0.002]
[1756225838529,1.10908244,109950.0,109940.0,0.002]
[1756225839360,0.1819174,109940.0,109930.0,0.3386537]
[1756225839574,0.1819174,109940.0,109930.0,0.43519572]
[1756225839575,0.34,109940.0,109930.0,0.43519572]
[1756225840205,0.52597477,109950.0,109940.0,0.1819174]
[1756225840415,1.08173044,109950.0,109940.0,0.1819174]
[1756225840617,0.52197477,109950.0,109940.0,0.1809174]
[1756225840827,0.34007391,109950.0,109940.0,0.27973338]
[1756225841071,7.391e-05,109950.0,109940.0,0.90673469]
[1756225841256,7.391e-05,109950.0,109940.0,0.97669469]
[1756225842320,0.00207391,109950.0,109940.0,0.97669469]
[1756225842706,0.00407391,109950.0,109940.0,0.97669469]
[1756225842919,0.00207391,109950.0,109940.0,0.97669469]
[1756225843249,0.00207391,109950.0,109940.0,0.97869469]
[1756225844073,7.391e-05,109950.0,109940.0,0.97869469]
[1756225844281,7.391e-05,109950.0,109940.0,0.34841942]
[1756225844479,0.18397477,109950.0,109940.0,0.50610942]
[1756225844684,0.18197477,109950.0,109940.0,0.50610942]
[1756225844920,0.18197477,109950.0,109940.0,0.50813942]
[1756225845129,7.391e-05,109950.0,109940.0,0.50813942]
[1756225845364,7.391e-05,109950.0,109940.0,1.06589509]
[1756225845549,7.391e-05,109950.0,109940.0,0.50813942]
[1756225847417,7.391e-05,109950.0,109940.0,0.50821942]
[1756225848017,7.391e-05,109950.0,109940.0,0.35141942]
[1756225848392,7.391e-05,109950.0,109940.0,0.50821942]
[1756225849022,7.391e-05,109950.0,109940.0,1.06597509]
[1756225850669,7.391e-05,109950.0,109940.0,0.50821942]
[1756225853559,0.18199677,109960.0,109950.0,0.18190086]
[1756225853766,0.18199677,109960.0,109950.0,0.27641288]
[1756225853969,0.00011192,109960.0,109950.0,0.27844288]
[1756225854694,0.18199624,109960.0,109950.0,0.27844288]
[1756225854934,0.00011192,109960.0,109950.0,0.27844288]
[1756225855550,0.00011192,109960.0,109950.0,0.31918196]
[1756225855987,0.00011192,109960.0,109950.0,0.32018196]
[1756225856399,0.00011192,109960.0,109950.0,0.87793763]
[1756225856598,0.00011192,109960.0,109950.0,0.32018196]
[1756225857020,0.00011192,109960.0,109950.0,0.87793763]
[1756225857257,0.00011192,109960.0,109950.0,0.32018196]
[1756225858957,0.00011192,109960.0,109950.0,0.47742196]
[1756225859374,0.00011192,109960.0,109950.0,1.03517763]
[1756225859573,0.00011192,109960.0,109950.0,1.05291206]
[1756225860074,0.00011192,109960.0,109950.0,0.49515639]
[1756225860285,0.00011192,109960.0,109950.0,0.49415639]
[1756225860499,0.00011192,109960.0,109950.0,1.05191206]
[1756225860922,0.00011192,109960.0,109950.0,1.05391206]
[1756225861814,0.00011192,109960.0,109950.0,1.08125206]
[1756225862261,0.00011192,109960.0,109950.0,1.09670108]
[1756225862492,0.00011192,109960.0,109950.0,1.09770108]
[1756225862751,0.00011192,109960.0,109950.0,0.54294541]
[1756225862985,0.00011192,109960.0,109950.0,1.09970108]
[1756225863204,0.00011192,109960.0,109950.0,0.54394541]
[1756225863415,0.00011192,109960.0,109950.0,0.38670541]
[1756225863625,0.00011192,109960.0,109950.0,1.10222108]
[1756225864434,0.00011192,109960.0,109950.0,1.50222108]
[1756225865025,0.00011192,109960.0,109950.0,1.34446108]
[1756225865222,0.00011192,109960.0,109950.0,1.50222108]
[1756225866473,0.00011192,109960.0,109950.0,1.50230108]
[1756225868131,0.00011192,109960.0,109950.0,1.50214108]
[1756225868363,0.00011192,109960.0,109950.0,0.92849639]
[1756225868599,0.00011192,109960.0,109950.0,0.52849639]
[1756225868833,0.00011192,109960.0,109950.0,1.08625206]
[1756225870676,0.00011192,109960.0,109950.0,0.52849639]
[1756225870918,0.00011192,109960.0,109950.0,1.08625206]
[1756225872404,0.00011192,109960.0,109950.0,0.92701206]
[1756225872654,0.00011192,109960.0,109950.0,0.52905639]
[1756225872877,0.00011192,109960.0,109950.0,1.08681206]
[1756225874023,0.00011192,109960.0,109950.0,0.52905639]
[1756225874234,0.00011192,109960.0,109950.0,1.08681206]
[1756225876075,0.00011192,109960.0,109950.0,0.34644196]
[1756225876338,0.00011192,109960.0,109950.0,0.47910196]
[1756225876539,0.18399624,109960.0,109950.0,0.31910196]
[1756225876771,0.73975191,109960.0,109950.0,0.25646202]
[1756225877624,0.73975191,109960.0,109950.0,0.09646202]
[1756225877889,0.73975191,109960.0,109950.0,0.005]
[1756225877890,1.72895287,109960.0,109950.0,0.005]
[1756225878367,1.76481741,109960.0,109950.0,0.005]
[1756225878595,0.66891882,109960.0,109950.0,0.005]
[1756225878819,1.78443016,109960.0,109950.0,0.003]
[1756225879280,1.78543016,109960.0,109950.0,0.003]
[1756225879483,1.76581741,109960.0,109950.0,0.003]
[1756225879688,0.52190086,109950.0,109940.0,0.15992]
[1756225880089,1.07965653,109950.0,109940.0,0.15992]
[1756225880503,1.17110182,109950.0,109940.0,0.15992]
[1756225881681,0.52190086,109950.0,109940.0,0.15992]
[1756225881860,1.07965653,109950.0,109940.0,0.15992]
[1756225883502,0.1819174,109940.0,109930.0,0.25189326]
[1756225883708,0.1819174,109940.0,109930.0,0.50335597]
[1756225883873,0.1819174,109940.0,109930.0,0.50640597]
[1756225884073,0.1819174,109940.0,109930.0,0.50335597]
[1756225884609,0.73967307,109940.0,109930.0,0.32242202]
[1756225884782,0.1819174,109940.0,109930.0,0.25446202]
[1756225884982,0.73967307,109940.0,109930.0,0.25446202]
[1756225885293,0.19955359,109940.0,109930.0,0.25446202]
[1756225885496,0.75730926,109940.0,109930.0,0.43639597]
[1756225885939,0.73967307,109940.0,109930.0,0.43639597]
[1756225886349,0.1819174,109940.0,109930.0,0.44158597]
[1756225886760,0.73967307,109940.0,109930.0,0.43639597]
[1756225886972,0.72066859,109940.0,109930.0,0.43924597]
[1756225887175,0.53974966,109950.0,109930.0,0.44138597]
[1756225887373,0.002,109940.0,109930.0,0.34992395]
[1756225887569,0.1839174,109940.0,109930.0,0.34992395]
[1756225887778,0.1819174,109940.0,109930.0,0.34992395]
[1756225887982,1.09750533,109950.0,109930.0,0.34992395]
[1756225888309,0.002,109940.0,109930.0,0.34992395]
[1756225888509,0.1839174,109940.0,109930.0,0.34992395]
[1756225888655,0.1819174,109940.0,109930.0,0.34992395]
[1756225889162,0.1819174,109940.0,109930.0,0.43938597]
[1756225889361,1.09750533,109950.0,109930.0,0.43938597]
[1756225889565,0.002,109940.0,109930.0,0.34792395]
[1756225889766,0.1839174,109940.0,109930.0,0.43958597]
[1756225889975,0.1819174,109940.0,109930.0,0.43858597]
[1756225890148,0.1819174,109940.0,109930.0,0.44058597]
[1756225891242,0.1819174,109940.0,109930.0,0.44158597]
[1756225891444,1.09750533,109950.0,109930.0,0.44158597]
[1756225891694,1.09750533,109950.0,109940.0,0.09146202]
[1756225891924,1.09750533,109950.0,109940.0,0.27856942]
[1756225892339,1.09750533,109950.0,109940.0,0.09451202]
[1756225892537,1.09750533,109950.0,109940.0,0.09665202]
[1756225892952,1.09750533,109950.0,109940.0,0.27856942]
[1756225893154,0.52203105,109950.0,109940.0,0.27856942]
[1756225896499,0.52203105,109950.0,109940.0,0.09665202]
[1756225897041,0.52203105,109950.0,109940.0,0.27856942]
[1756225899499,0.52203105,109950.0,109940.0,0.09665202]
[1756225899711,0.18193395,109930.0,109920.0,0.22707368]
[1756225899889,0.73968962,109930.0,109920.0,0.2959852]
[1756225902919,0.52193395,109930.0,109920.0,0.44307252]
[1756225904841,0.34,109930.0,109920.0,0.44307252]
[1756225905061,0.34,109930.0,109920.0,1.00082819]
[1756225905282,0.34,109940.0,109930.0,0.18193395]
[1756225905493,0.36815589,109940.0,109930.0,0.27551597]
[1756225905760,0.35963447,109940.0,109930.0,0.27865597]
[1756225906164,0.36816117,109940.0,109930.0,0.27865597]
[1756225906588,0.36816117,109940.0,109930.0,0.27965597]
[1756225906799,0.36816117,109940.0,109930.0,0.28165597]
[1756225907439,0.36816365,109940.0,109930.0,0.28165597]
[1756225907855,0.02816365,109940.0,109930.0,0.28165597]
[1756225908069,0.18203105,109950.0,109940.0,0.1819174]
[1756225908296,0.55021128,109950.0,109940.0,0.43453942]
[1756225908497,0.36831042,109950.0,109940.0,0.43767942]
[1756225909745,0.55021128,109950.0,109940.0,0.27863942]
[1756225909984,0.55021128,109950.0,109940.0,0.25576202]
[1756225910424,0.55021128,109950.0,109940.0,0.43767942]
[1756225911219,0.02831042,109950.0,109940.0,1.03548926]
[1756225911428,0.00013019,109950.0,109940.0,1.03548926]
[1756225912382,0.00013019,109950.0,109940.0,1.03748926]
[1756225912591,0.00013019,109950.0,109940.0,1.04048926]
[1756225913677,0.00013019,109950.0,109940.0,1.05626905]
[1756225914684,0.00013019,109950.0,109940.0,0.49851338]
[1756225915116,0.00013019,109950.0,109940.0,1.05626905]
[1756225915909,0.00013019,109950.0,109940.0,0.49851338]
[1756225916155,0.00013019,109950.0,109940.0,1.05626905]
[1756225916369,0.00013019,109950.0,109940.0,0.32369359]
[1756225916589,0.00013019,109950.0,109940.0,0.48237359]
[1756225916786,0.00013019,109950.0,109940.0,0.48025359]
[1756225916997,0.18403105,109950.0,109940.0,0.47963359]
[1756225917204,0.18203105,109950.0,109940.0,0.48277359]
[1756225917654,0.18203105,109950.0,109940.0,0.29555619]
[1756225917875,0.18203105,109950.0,109940.0,0.48273359]
[1756225918096,0.18203105,109950.0,109940.0,0.43953942]
[1756225918301,0.18203105,109950.0,109940.0,0.44267942]
[1756225919974,0.18203105,109950.0,109940.0,0.44055942]
[1756225920392,0.18203105,109950.0,109940.0,0.27837942]
[1756225920598,0.18203105,109950.0,109940.0,0.43725942]
[1756225920813,0.18203105,109950.0,109940.0,0.09646202]
[1756225920995,0.27347634,109950.0,109940.0,0.43725942]
[1756225921229,0.18203105,109950.0,109940.0,0.43725942]
[1756225921426,0.18203105,109950.0,109940.0,0.44251942]
[1756225923598,0.00013019,109950.0,109940.0,0.44251942]
[1756225923808,0.00213019,109950.0,109940.0,0.44251942]
[1756225924021,0.00013019,109950.0,109940.0,1.00027509]
[1756225928231,0.00013019,109950.0,109940.0,0.99995509]
[1756225929563,0.00013019,109950.0,109940.0,1.00360009]
[1756225929967,0.00013019,109950.0,109940.0,1.00060009]
[1756225930167,0.00013019,109950.0,109940.0,1.00560009]
[1756225930598,0.00013019,109950.0,109940.0,1.04668718]
[1756225930767,0.00013019,109950.0,109940.0,1.30928718]
[1756225931294,0.00013019,109950.0,109940.0,1.31128718]
[1756225934574,0.00013019,109950.0,109940.0,1.71128718]
[1756225935953,0.00013019,109950.0,109940.0,1.44668718]
[1756225937304,0.00013019,109950.0,109940.0,1.4641362]
[1756225940296,0.00013019,109950.0,109940.0,0.90594053]
[1756225940495,0.00013019,109950.0,109940.0,1.4636962]
[1756225943122,0.00013019,109950.0,109940.0,1.7282962]
[1756225948013,0.00013019,109950.0,109940.0,1.68720911]
[1756225950148,0.19094539,109980.0,109960.0,0.18188432]
[1756225950515,0.19103219,109980.0,109970.0,0.09146202]
[1756225950724,0.18186778,109970.0,109960.0,0.34330552]
[1756225950932,0.19103219,109980.0,109960.0,0.50106552]
[1756225951140,0.74878786,109980.0,109970.0,0.15776]
[1756225951398,0.74978786,109980.0,109970.0,0.15776]
[1756225952040,0.74978786,109980.0,109970.0,0.33962778]
[1756225952247,0.19203219,109980.0,109970.0,0.33962778]
[1756225952448,0.19303219,109980.0,109970.0,0.15776]
[1756225952669,0.19203219,109980.0,109970.0,0.15776]
[1756225952872,0.19103219,109980.0,109970.0,0.15776]
[1756225953277,0.19203219,109980.0,109970.0,0.15776]
[1756225953697,0.19303219,109980.0,109970.0,0.15776]
[1756225953847,0.28447748,109980.0,109970.0,0.15776]
[1756225954265,0.19303219,109980.0,109970.0,0.15776]
[1756225954622,0.20155835,109980.0,109970.0,0.15776]
[1756225955411,0.20155835,109980.0,109970.0,0.19903666]
[1756225956792,0.18186778,109970.0,109960.0,0.16142202]
[1756225956999,0.18188432,109960.0,109940.0,0.29267435]
[1756225957202,0.18188432,109960.0,109950.0,0.43080288]
[1756225958114,0.18188432,109960.0,109950.0,0.24890202]
[1756225958786,0.18188432,109960.0,109950.0,0.24886202]
[1756225959037,0.18188432,109960.0,109950.0,0.09146202]
[1756225959260,0.18188432,109960.0,109950.0,0.24886202]
[1756225959707,0.18188432,109960.0,109950.0,0.25086202]
[1756225960203,0.18188432,109960.0,109950.0,0.25186202]
[1756225962163,0.18188432,109960.0,109950.0,0.09446202]
[1756225962366,0.75906965,109960.0,109950.0,0.25178202]
[1756225962568,0.73963999,109960.0,109950.0,0.25178202]
[1756225964060,0.18188432,109960.0,109950.0,0.25178202]
[1756225964514,0.73963999,109960.0,109950.0,0.003]
[1756225964735,1.07963999,109960.0,109950.0,0.16028]
[1756225964939,1.07963999,109960.0,109950.0,0.003]
[1756225965156,0.64067861,109960.0,109950.0,0.16028]
[1756225965380,1.19843428,109960.0,109950.0,0.16028]
[1756225965599,1.19843428,109960.0,109950.0,0.15828]
[1756225966027,1.19843428,109960.0,109950.0,0.15728]
[1756225967494,0.18190086,109950.0,109940.0,0.11075722]
[1756225967725,0.18193395,109930.0,109920.0,0.07302]
[1756225967964,0.18193395,109930.0,109920.0,0.32375202]
[1756225968210,0.18193395,109930.0,109920.0,0.16448202]
[1756225968431,0.18193395,109930.0,109920.0,0.32176202]
[1756225968880,0.18193395,109930.0,109920.0,0.32074202]
[1756225969092,0.18198164,109930.0,109920.0,0.32376202]
[1756225970673,0.18198164,109930.0,109920.0,0.32575202]
[1756225971226,0.18198164,109930.0,109920.0,1.06545819]
[1756225971435,0.18198164,109930.0,109920.0,1.06645819]
[1756225972482,0.18198164,109930.0,109920.0,1.10755685]
[1756225972717,0.18198164,109930.0,109920.0,0.54980118]
[1756225972946,0.18198164,109930.0,109920.0,1.10755685]
[1756225973223,4.769e-05,109930.0,109920.0,1.10755685]
[1756225975232,4.769e-05,109930.0,109920.0,0.54984118]
[1756225975233,0.18198164,109930.0,109920.0,0.54984118]
[1756225975453,0.18198164,109930.0,109920.0,1.10759685]
[1756225978124,4.769e-05,109930.0,109920.0,1.06649819]
[1756225978830,0.18198164,109930.0,109920.0,1.06649819]
[1756225979054,0.18198164,109930.0,109920.0,0.50874252]
[1756225979277,4.769e-05,109930.0,109920.0,1.06649819]
[1756225981517,4.769e-05,109930.0,109920.0,1.09384819]
[1756225982868,4.769e-05,109930.0,109920.0,1.13413102]
[1756225984202,4.769e-05,109930.0,109920.0,0.41905535]
[1756225984414,0.18198164,109930.0,109920.0,1.13413102]
[1756225984860,0.18198164,109930.0,109920.0,0.23710485]
[1756225985091,0.79087378,109930.0,109920.0,0.13478485]